bitfinex-derivatives/quotes_ETHF0:USTF0_20240928
["timestamp","ask_amount","ask_price","bid_price","bid_amount"]
[1727513809329,4.67670826,2670.1,2670.0,6.40612]
[1727513809635,1.46890826,2670.4,2670.2,0.37441]
[1727513809834,1.46890826,2670.5,2670.4,0.37438]
[1727513810134,1.46890826,2670.5,2670.4,1.72438]
[1727513810442,2.35506664,2670.7,2670.6,0.37435]
[1727513810734,2.35506664,2670.7,2670.6,1.72435]
[1727513811235,0.4003,2670.7,2670.6,1.72435]
[1727513819350,0.4003,2670.7,2670.6,6.41015]
[1727513820635,1.86819328,2670.7,2670.6,6.41015]
[1727513821441,1.86819328,2670.7,2670.5,0.941]
[1727513821640,1.46789328,2670.6,2670.5,2.66535]
[1727513822945,1.46789328,2670.6,2670.5,1.72435]
[1727513823749,2.72940664,2670.7,2670.5,1.72435]
[1727513824247,1.46362344,2670.6,2670.5,1.72435]
[1727513825851,1.86392344,2670.7,2670.6,0.37435]
[1727513826041,1.86392344,2670.7,2670.6,1.72435]
[1727513826949,0.4003,2670.7,2670.6,1.72435]
[1727513828254,0.4003,2670.7,2670.6,1.35]
[1727513828448,0.4003,2670.7,2670.6,1.72435]
[1727513830049,0.77464,2670.7,2670.6,1.72435]
[1727513832749,0.77464,2670.7,2670.6,1.35]
[1727513832946,0.77464,2670.7,2670.6,1.72435]
[1727513833144,0.77464,2670.7,2670.6,1.35]
[1727513833961,0.77464,2670.7,2670.6,1.72435]
[1727513834452,0.4003,2670.7,2670.6,1.72435]
[1727513835448,0.77464,2670.7,2670.6,1.72435]
[1727513836049,3.6081,2670.7,2670.6,1.72435]
[1727513837261,3.98244,2670.7,2670.6,1.72435]
[1727513838151,0.77464,2670.7,2670.6,1.72435]
[1727513840548,0.4003,2670.7,2670.6,1.72435]
[1727513840958,0.77464,2670.7,2670.6,1.72435]
[1727513841868,4.1451,2670.7,2670.1,3.2078]
[1727513842070,4.1451,2670.7,2669.9,0.37444]
[1727513842071,0.37443,2670.1,2669.9,0.37444]
[1727513842263,0.37443,2670.1,2669.8,1.72445]
[1727513842264,1.52644,2670.0,2669.8,1.72445]
[1727513842470,2.99006344,2670.0,2669.8,1.72445]
[1727513842669,0.37445,2669.9,2669.8,0.37445]
[1727513842868,1.46362344,2669.9,2669.8,1.72445]
[1727513843264,3.48120664,2670.0,2669.8,1.72446]
[1727513843465,2.32921664,2669.9,2669.8,1.35]
[1727513845475,0.37448,2669.7,2669.5,0.3745]
[1727513845666,1.87448773,2669.6,2669.5,1.72449]
[1727513846677,1.8746321,2669.6,2669.5,1.72449]
[1727513846877,0.4077,2669.6,2669.4,0.37451]
[1727513847066,2.21726896,2669.5,2669.4,0.37451]
[1727513847266,3.19511048,2669.5,2669.4,1.72451]
[1727513847480,1.72822974,2669.5,2669.4,1.72451]
[1727513849174,0.7504,2669.5,2669.4,1.72451]
[1727513849680,0.375,2669.5,2669.4,1.72451]
[1727513869991,3.97019,2669.7,2669.6,0.37449]
[1727513869992,0.3879,2669.7,2669.6,0.37449]
[1727513870188,0.7896,2669.9,2669.8,0.37446]
[1727513870389,0.3833,2669.9,2669.8,1.72446]
[1727513870697,0.97782974,2670.2,2669.8,1.72446]
[1727513870698,0.4063,2670.2,2670.1,0.37442]
[1727513870989,0.4063,2670.2,2670.1,1.72442]
[1727513873297,1.38412974,2670.2,2670.1,1.72442]
[1727513875794,0.97782974,2670.2,2670.1,1.72442]
[1727513880302,1.1658,2670.3,2670.1,1.72442]
[1727513880498,3.7448,2670.2,2669.6,1.35645188]
[1727513880699,0.37451,2669.5,2669.3,1.72452]
[1727513880998,0.7779,2669.4,2669.3,1.72452]
[1727513881421,0.7779,2669.4,2669.2,0.954]
[1727513881422,1.15242,2669.4,2669.2,2.67854]
[1727513881600,1.15242,2669.4,2669.3,1.35]
[1727513882292,1.15242,2669.4,2669.2,0.37454]
[1727513882490,1.15242,2669.4,2669.1,2.92]
[1727513882491,0.37453,2669.3,2669.1,3.29455]
[1727513883201,0.37453,2669.3,2669.1,2.92]
[1727513883695,0.37453,2669.3,2669.1,3.29456]
[1727513885304,0.37458,2669.0,2668.8,4.70664045]
[1727513885605,0.3845,2668.9,2668.8,4.33204045]
[1727513886102,1.36232974,2668.9,2668.4,0.37465]
[1727513886298,1.36232974,2668.9,2668.3,3.29466]
[1727513886299,0.37464,2668.6,2668.3,3.29466]
[1727513886601,0.78105,2668.5,2668.2,0.37468]
[1727513886805,1.75887974,2668.5,2668.2,0.37468]
[1727513887003,0.4055,2668.4,2668.2,0.37468]
[1727513887302,1.75798974,2668.4,2668.2,0.37468]
[1727513887508,0.78016,2668.4,2668.1,3.29469]
[1727513887801,0.78016,2668.4,2668.1,3.2947]
[1727513887802,3.2078,2668.2,2668.1,3.2947]
[1727513888006,1.75798974,2668.4,2668.1,3.2947]
[1727513888505,0.37467,2668.3,2668.1,2.92]
[1727513888705,0.4091,2668.2,2668.1,2.92]
[1727513889994,0.78379,2668.2,2668.1,2.92]
[1727513890195,3.99159,2668.2,2668.0,0.41751311]
[1727513890397,3.6169,2668.2,2668.0,0.41751311]
[1727513890615,3.6169,2668.2,2668.0,0.79222311]
[1727513890910,3.6169,2668.2,2667.9,3.29472]
[1727513891407,3.6169,2668.2,2668.0,0.37471]
[1727513891606,3.6169,2668.2,2667.9,3.29472]
[1727513892003,3.99159,2668.2,2667.9,3.29472]
[1727513892808,3.99159,2668.2,2667.9,2.92]
[1727513893309,3.99159,2668.2,2667.9,3.29473]
[1727513893803,0.4091,2668.2,2668.0,0.37471]
[1727513894502,0.4091,2668.2,2667.9,3.29472]
[1727513894706,0.4091,2668.2,2668.0,0.37471]
[1727513895404,0.4091,2668.2,2667.9,3.29472]
[1727513896215,0.78379,2668.2,2667.9,2.92]
[1727513896908,0.3747,2668.1,2667.9,2.92]
[1727513897111,0.37472,2668.0,2667.7,2.92]
[1727513897505,0.37472,2668.0,2667.6,0.37476]
[1727513897506,1.15894,2667.9,2667.5,3.29478]
[1727513897706,0.7842,2667.9,2667.5,2.92]
[1727513898002,0.7842,2667.9,2667.5,3.29478]
[1727513898202,0.7842,2667.9,2667.5,2.92]
[1727513898403,0.37476,2667.7,2667.5,2.92]
[1727513898598,0.3704,2667.6,2667.5,2.92]
[1727513899812,0.3704,2667.6,2667.3,7.2540053]
[1727513900212,0.3704,2667.6,2667.4,0.37479]
[1727513900510,0.3704,2667.6,2667.3,7.2540053]
[1727513900704,0.3704,2667.6,2667.4,0.37479]
[1727513901103,0.3704,2667.6,2667.5,0.37478]
[1727513901301,0.3704,2667.6,2667.4,0.37479]
[1727513902010,0.3704,2667.6,2667.5,0.37478]
[1727513902206,0.3704,2667.6,2667.4,0.37479]
[1727513902619,0.3704,2667.6,2667.4,3.29479]
[1727513904505,0.3704,2667.6,2667.5,0.37478]
[1727513905812,0.3704,2667.6,2667.4,3.29479]
[1727513907318,0.4036,2667.5,2667.4,3.29479]
[1727513909506,0.4036,2667.5,2667.4,3.2948]
[1727513912211,0.4036,2667.5,2667.4,1.7248]
[1727513922721,0.3704,2667.6,2667.5,0.37478]
[1727513929023,5.4692,2667.6,2667.3,0.3748]
[1727513929223,0.74589,2667.5,2667.3,0.3748]
[1727513929427,0.4049,2667.4,2667.3,0.3748]
[1727513931434,1.38272974,2667.4,2667.3,0.3748]
[1727513932326,1.38272974,2667.4,2667.1,1.35]
[1727513932327,2.24656896,2667.4,2667.2,0.37482]
[1727513932534,0.97828359,2667.3,2667.2,0.37482]
[1727513933428,0.97841086,2667.3,2667.2,0.37482]
[1727513937025,1.87176896,2667.4,2667.3,0.37481]
[1727513937436,0.4049,2667.4,2667.3,0.37481]
[1727513937623,1.87312724,2667.4,2667.3,0.37481]
[1727513938535,1.46822724,2667.5,2667.4,0.3748]
[1727513938731,5.65119159,2667.8,2667.5,0.93697]
[1727513938732,1.46822724,2667.8,2667.5,0.93697]
[1727513938938,0.4083,2667.9,2667.7,1.72476]
[1727513939132,0.4083,2667.9,2667.8,0.37474]
[1727513940160,0.4083,2667.9,2667.5,1.47220863]
[1727513940161,3.71401698,2667.9,2667.7,0.37475]
[1727513940333,1.95571698,2667.8,2667.6,0.37476]
[1727513940533,1.46912581,2667.7,2667.6,0.37476]
[1727513940736,2.33045698,2667.8,2667.6,0.37476]
[1727513940933,1.95877526,2667.8,2667.7,0.37476]
[1727513941133,1.95874881,2667.8,2667.7,0.37476]
[1727513941331,4.57642159,2667.9,2667.7,0.37476]
[1727513941632,0.37475,2667.8,2667.4,1.35]
[1727513941837,1.469439,2667.6,2667.4,1.35]
[1727513942230,0.3782,2667.5,2667.4,1.7248]
[1727513942450,1.847639,2667.5,2667.4,2.70677188]
[1727513942937,1.847639,2667.5,2667.4,1.7248]
[1727513943634,1.847639,2667.5,2667.4,2.70677188]
[1727513943841,0.3782,2667.5,2667.4,0.3748]
[1727513944633,2.337452,2667.5,2667.4,0.3748]
[1727513945836,2.337452,2667.5,2667.3,1.7248]
[1727513946036,0.3952,2667.4,2667.3,1.72481]
[1727513946243,2.354452,2667.4,2667.3,1.72481]
[1727513947836,0.3952,2667.4,2667.3,1.72481]
[1727513949346,0.3952,2667.4,2667.3,0.37481]
[1727513950741,2.83859159,2667.4,2667.3,0.37481]
[1727513951045,0.3952,2667.4,2667.3,0.37481]
[1727513954346,2.35540317,2667.4,2667.3,0.37481]
[1727513965643,0.77,2667.4,2667.2,0.37482]
[1727513965849,5.16762666,2667.3,2667.2,0.37482]
[1727513966049,1.95982666,2667.3,2667.2,0.37482]
[1727513971964,0.3952,2667.4,2667.3,0.37481]
[1727513972863,2.83859159,2667.4,2667.3,0.37481]
[1727513973169,0.3952,2667.4,2667.3,0.37481]
[1727513973559,3.21339159,2667.4,2667.2,0.37481]
[1727513973768,1.96006515,2667.3,2667.2,0.37481]
[1727513973952,2.73006515,2667.4,2667.2,0.37481]
[1727513974151,2.73006515,2667.4,2667.1,2.33197188]
[1727513974152,2.35526515,2667.4,2667.3,0.37481]
[1727513974553,2.35536812,2667.4,2667.3,0.37481]
[1727513974755,2.35536348,2667.4,2667.3,0.37481]
[1727513974959,0.77,2667.4,2667.2,0.37482]
[1727513975162,1.96010353,2667.3,2667.2,0.37482]
[1727513975358,2.35530353,2667.4,2667.2,0.37482]
[1727513975564,2.35530353,2667.4,2667.1,1.35]
[1727513975565,2.35530353,2667.4,2667.3,0.37481]
[1727513976164,2.35530353,2667.4,2667.2,0.37482]
[1727513976555,2.73010353,2667.4,2667.2,0.37482]
[1727513976755,2.35530353,2667.4,2667.2,0.37482]
[1727513977471,1.96010353,2667.3,2667.2,0.37482]
[1727513977659,2.35530353,2667.4,2667.2,0.37482]
[1727513977859,2.35530353,2667.4,2667.3,0.37481]
[1727513978268,2.35560187,2667.4,2667.1,1.35]
[1727513978465,2.35560187,2667.4,2667.2,0.37483]
[1727513978763,1.96040187,2667.3,2667.2,0.37483]
[1727513978962,2.35560187,2667.4,2667.2,0.37483]
[1727513981357,2.35560187,2667.4,2667.3,0.37481]
[1727513981868,1.47052601,2667.7,2667.6,0.37477]
[1727513982064,1.4707158,2667.8,2667.6,2.33276489]
[1727513982368,2.2875158,2667.9,2667.8,0.37474]
[1727513984073,0.8168,2667.9,2667.8,0.37474]
[1727513984863,2.36920187,2667.9,2667.8,1.72474]
[1727513985068,1.96040187,2668.1,2667.8,5.098]
[1727513985380,1.96040187,2668.1,2667.9,0.37473]
[1727513985381,1.46965564,2668.0,2667.9,0.37473]
[1727513985677,2.44339159,2668.1,2667.9,0.37473]
[1727513985878,2.44339159,2668.1,2668.0,0.37471]
[1727513986058,0.3747,2668.1,2667.9,0.37472]
[1727513986263,2.44933456,2668.0,2667.9,0.37472]
[1727513987470,3.79933456,2668.0,2667.9,0.37472]
[1727513987869,3.79933456,2668.0,2667.6,0.956]
[1727513987870,4.5578,2668.0,2667.6,0.956]
[1727513988076,1.95947789,2667.8,2667.7,0.37476]
[1727513988266,2.44934736,2667.9,2667.8,0.37474]
[1727513988673,2.44934736,2667.9,2667.7,0.37475]
[1727513988982,3.20068736,2667.8,2667.6,0.37476]
[1727513989276,2.44934736,2667.7,2667.6,0.37476]
[1727513990276,2.44934736,2667.7,2667.5,0.37477]
[1727513990474,2.44934736,2667.7,2667.6,0.37477]
[1727513991878,1.46946298,2667.7,2667.6,0.37477]
[1727513992379,1.46946298,2667.7,2667.5,0.37477]
[1727513996374,1.35,2667.6,2667.2,0.98276489]
[1727513996581,6.02726298,2667.6,2667.4,0.3748]
[1727513996783,1.46946298,2667.5,2667.4,0.3748]
[1727513996983,1.46946298,2667.6,2667.4,0.3748]
[1727513997172,1.46946298,2667.5,2667.3,1.72481]
[1727513997571,0.3929,2667.4,2667.3,1.72481]
[1727513999376,0.3929,2667.4,2667.1,0.98276489]
[1727513999377,0.3929,2667.4,2667.2,0.37482]
[1727513999775,0.7677,2667.4,2667.2,0.37482]
[1727513999978,2.23716298,2667.4,2667.2,0.37482]
[1727514000579,2.23716298,2667.4,2667.1,1.35]
[1727514000875,0.3875,2667.3,2667.1,1.35]
[1727514001075,0.76232,2667.3,2667.1,0.37483]
[1727514001384,0.76232,2667.3,2667.0,4.5578]
[1727514001385,0.3875,2667.3,2667.0,4.5578]
[1727514001590,0.3875,2667.3,2667.2,0.37483]
[1727514002479,0.3875,2667.3,2667.0,3.2078]
[1727514002678,1.85696298,2667.3,2667.0,3.2078]
[1727514002880,1.85696298,2667.3,2667.2,1.72483]
[1727514003089,0.3875,2667.3,2667.2,1.72483]
[1727514006489,1.86236298,2667.4,2667.3,0.37481]
[1727514006688,0.3929,2667.4,2667.3,0.37481]
[1727514014087,1.86236298,2667.4,2667.3,0.37481]
[1727514014290,1.86236298,2667.4,2667.2,0.37482]
[1727514014789,1.46946298,2667.3,2667.2,0.37482]
[1727514015995,1.46946298,2667.3,2667.1,1.35]
[1727514015996,1.86236298,2667.4,2667.3,0.37481]
[1727514017491,0.93685,2667.9,2667.6,0.93693]
[1727514017492,1.95928397,2667.9,2667.6,0.93693]
[1727514017695,0.087,2668.0,2667.9,0.37473]
[1727514017696,0.3925,2668.0,2667.9,0.37473]
[1727514019794,0.3925,2668.0,2667.8,1.35]
[1727514020397,0.3925,2668.0,2667.9,0.37473]
[1727514028298,0.3925,2668.0,2667.9,4.12273]
[1727514028499,0.3925,2668.0,2667.9,0.37473]
[1727514028807,0.3925,2668.0,2667.9,4.12273]
[1727514031502,0.3925,2668.0,2667.9,0.37473]
[1727514032101,0.3925,2668.0,2667.9,4.12273]
[1727514033497,0.3925,2668.0,2667.9,0.37473]
[1727514034213,5.4905,2668.0,2667.5,0.98174257]
[1727514034502,0.37476,2667.7,2667.5,0.37478]
[1727514034705,0.778,2667.6,2667.4,1.72479]
[1727514034905,0.3722,2667.5,2667.4,1.72479]
[1727514035494,0.74698,2667.5,2667.4,1.35]
[1727514035708,0.74698,2667.5,2667.2,1.72483]
[1727514035709,3.95478,2667.5,2667.2,1.72483]
[1727514036406,0.3748,2667.4,2667.1,1.72483]
[1727514036600,0.3748,2667.4,2667.2,0.37483]
[1727514037095,3.58,2667.5,2667.1,1.35]
[1727514037299,0.37481,2667.4,2667.1,1.72484]
[1727514037813,1.72482,2667.3,2667.1,0.37484]
[1727514038004,3.2078,2667.2,2667.0,0.37485]
[1727514038204,0.3718,2667.1,2667.0,0.37485]
[1727514041206,4.49625,2667.1,2666.8,0.37487]
[1727514041399,0.3904,2667.0,2666.6,1.35]
[1727514041596,2.11526,2667.0,2666.7,0.37489]
[1727514041995,4.07454397,2667.0,2666.7,0.37489]
[1727514042195,2.11525,2667.0,2666.7,0.37489]
[1727514042504,1.7404,2667.0,2666.7,0.37488]
[1727514042703,3.69968397,2667.0,2666.5,1.35]
[1727514043323,0.3904,2667.0,2666.8,0.37488]
[1727514043704,0.3904,2667.0,2666.9,0.37487]
[1727514044808,0.3904,2667.0,2666.8,1.35]
[1727514045006,0.3904,2667.0,2666.9,0.37487]
[1727514046611,0.3904,2667.0,2666.8,1.72487]
[1727514046912,0.3904,2667.0,2666.9,0.37487]
[1727514048606,0.3904,2667.0,2666.8,1.72487]
[1727514049003,0.76525,2667.0,2666.7,1.72489]
[1727514051909,3.2078,2666.9,2666.7,1.72489]
[1727514052309,0.3716,2666.8,2666.7,1.72489]
[1727514056512,0.3716,2666.8,2666.7,0.37489]
[1727514056728,0.3904,2667.0,2666.9,0.37487]
[1727514057011,0.7807,2667.0,2666.9,0.37487]
[1727514057204,0.7807,2667.0,2666.9,1.72487]
[1727514058809,0.7807,2667.0,2666.9,1.35]
[1727514059215,0.7807,2667.0,2666.9,1.72487]
[1727514060516,0.7807,2667.0,2666.9,1.35]
[1727514060725,0.7807,2667.0,2666.9,1.72487]
[1727514061217,0.7807,2667.0,2666.9,1.35]
[1727514061418,0.7807,2667.0,2666.9,1.72487]
[1727514062221,0.7807,2667.0,2666.9,1.35]
[1727514062822,0.7807,2667.0,2666.9,1.72487]
[1727514063320,0.7807,2667.0,2666.8,1.35]
[1727514063508,0.37488,2666.8,2666.5,1.72492]
[1727514063712,0.3749,2666.7,2666.4,1.72493]
[1727514063911,0.3749,2666.7,2666.0,5.2738719]
[1727514063912,5.323,2666.6,2666.2,0.37496]
[1727514064117,5.323,2666.6,2666.4,0.37494]
[1727514064321,0.3917,2666.5,2666.3,1.72494]
[1727514065220,0.3917,2666.5,2665.8,4.14534]
[1727514065221,0.3917,2666.5,2666.4,1.72494]
[1727514065921,0.7652,2666.6,2666.4,1.72494]
[1727514066515,0.7652,2666.6,2666.5,0.37492]
[1727514066716,0.3717,2666.6,2666.5,0.37492]
[1727514067326,0.7676,2666.8,2666.7,0.3749]
[1727514067621,3.2078,2666.9,2666.8,0.37488]
[1727514067816,3.2078,2666.9,2666.8,1.72488]
[1727514068119,0.7717,2667.2,2667.1,0.37484]
[1727514068319,0.7717,2667.2,2667.1,3.30484]
[1727514068626,3.2078,2667.5,2667.3,0.37481]
[1727514068818,0.7935,2667.4,2667.1,2.93]
[1727514069214,0.7935,2667.4,2667.3,0.37481]
[1727514070313,0.7935,2667.4,2667.2,0.37482]
[1727514070918,0.7935,2667.4,2667.3,0.37481]
[1727514071123,0.7935,2667.4,2667.1,2.93]
[1727514072519,0.7935,2667.4,2667.2,0.37481]
[1727514073413,0.7935,2667.4,2667.3,0.37481]
[1727514075427,1.76824528,2667.4,2667.3,0.37481]
[1727514076621,1.76824528,2667.4,2667.3,3.30481]
[1727514076622,1.37494528,2667.4,2667.3,3.30481]
[1727514077120,0.97474528,2667.5,2667.4,0.3748]
[1727514077523,2.60948091,2667.6,2667.4,0.3748]
[1727514078132,2.60948091,2667.6,2667.3,3.30481]
[1727514078334,0.97663197,2667.4,2667.3,3.30481]
[1727514078831,0.97663197,2667.4,2667.3,7.05361]
[1727514079629,1.46448091,2667.5,2667.3,7.05361]
[1727514079828,1.46448091,2667.5,2667.3,3.30481]
[1727514080028,1.46448091,2667.5,2667.4,0.3748]
[1727514080425,3.47905397,2667.6,2667.3,0.37481]
[1727514080627,3.47905397,2667.6,2667.1,0.37483]
[1727514080628,2.33408397,2667.4,2667.1,0.37483]
[1727514080835,2.33408397,2667.4,2667.0,3.2078]
[1727514080836,0.97746229,2667.2,2667.0,3.58265]
[1727514081028,0.7639,2667.1,2667.0,3.58265]
[1727514081234,2.62359344,2667.1,2667.0,3.58265]
[1727514081735,2.62359344,2667.1,2666.7,3.897]
[1727514081928,0.97748718,2666.9,2666.8,0.37487]
[1727514082128,0.97748718,2666.9,2666.7,2.93]
[1727514082129,3.11668397,2667.1,2666.9,0.37487]
[1727514082329,3.49153397,2667.1,2666.8,0.37488]
[1727514082537,1.35236645,2666.9,2666.6,0.3749]
[1727514082727,1.35236645,2666.9,2666.5,2.93]
[1727514082728,0.97749645,2666.9,2666.7,0.37489]
[1727514082929,0.97749645,2666.8,2666.7,0.37489]
[1727514083436,0.97749645,2666.8,2666.6,0.37491]
[1727514083643,0.7825,2666.7,2666.6,0.37491]
[1727514085440,0.7825,2666.7,2666.3,4.87874257]
[1727514085639,0.97749645,2666.5,2666.4,0.37494]
[1727514085829,1.35579645,2666.6,2666.5,0.37492]
[1727514086028,1.35634533,2666.6,2666.4,0.37493]
[1727514086345,0.97804533,2666.5,2666.4,0.37493]
[1727514086643,1.35634533,2666.6,2666.4,0.37493]
[1727514086943,0.97804533,2666.5,2666.4,0.37493]
[1727514087144,0.3783,2666.6,2666.5,0.37492]
[1727514087343,1.35622358,2666.6,2666.4,0.37493]
[1727514087549,0.97792358,2666.5,2666.4,0.37493]
[1727514087846,0.3783,2666.6,2666.5,0.37492]
[1727514088039,1.35623105,2666.6,2666.4,0.37493]
[1727514088337,1.35623105,2666.6,2666.5,0.37492]
[1727514089446,1.35623105,2666.6,2666.4,0.37493]
[1727514089645,1.73115105,2666.6,2666.3,3.30495]
[1727514089842,0.97793105,2666.5,2666.4,0.37494]
[1727514090258,0.97793105,2666.5,2666.3,0.37494]
[1727514094341,0.97793105,2666.5,2666.4,0.37494]
[1727514094541,4.56403105,2666.6,2666.5,0.37492]
[1727514094743,1.35623105,2666.6,2666.5,0.37492]
[1727514094943,1.73114105,2666.6,2666.3,0.37494]
[1727514095153,4.56403105,2666.6,2666.1,2.93]
[1727514095349,1.35623105,2666.6,2666.1,2.93]
[1727514095545,1.35623105,2666.6,2665.9,6.07304257]
[1727514095546,1.35623105,2666.6,2666.5,0.37492]
[1727514095946,0.3783,2666.6,2666.5,0.37492]
[1727514096450,1.35623105,2666.6,2666.5,0.37492]
[1727514096654,0.3783,2666.6,2666.5,0.37492]
[1727514101948,0.3783,2666.6,2666.4,0.37493]
[1727514102651,0.3783,2666.6,2666.1,2.93]
[1727514102652,0.37493,2666.5,2666.1,2.93]
[1727514102857,0.37493,2666.5,2666.2,0.37495]
[1727514103556,0.37493,2666.5,2666.3,0.37495]
[1727514105054,4.93895105,2666.6,2666.0,2.93]
[1727514105257,0.37492,2666.5,2666.3,0.37495]
[1727514105662,4.56403105,2666.6,2666.2,0.37496]
[1727514105663,7.49403105,2666.6,2666.2,0.37496]
[1727514105863,3.2078,2666.3,2665.8,7.26676791]
[1727514106057,0.37494,2666.4,2666.2,0.37496]
[1727514106456,0.97793105,2666.5,2666.2,0.37496]
[1727514106658,0.37495,2666.4,2666.2,0.37496]
[1727514106959,0.37494,2666.4,2666.2,0.37496]
[1727514107157,0.97793105,2666.5,2665.7,0.98174257]
[1727514107461,7.98234474,2666.6,2666.1,0.37498]
[1727514107462,3.2078,2666.2,2666.1,0.37498]
[1727514107856,0.97793105,2666.4,2666.2,0.37497]
[1727514108162,1.46624474,2666.5,2666.1,6.6804]
[1727514108163,0.37492,2666.5,2666.3,0.37494]
[1727514108364,0.3783,2666.6,2666.5,0.37492]
[1727514109053,4.18573105,2666.9,2666.4,0.37494]
[1727514109259,0.3948,2666.8,2666.7,0.37489]
[1727514111460,0.3948,2666.8,2666.3,2.93]
[1727514111756,0.3948,2666.8,2666.7,0.3749]
[1727514113752,0.3948,2666.8,2666.5,0.37492]
[1727514113753,0.3749,2666.7,2666.5,0.37492]
[1727514114355,3.2078,2666.6,2666.0,0.3129]
[1727514114563,4.18573105,2666.6,2666.0,1.2589]
[1727514114763,4.18573105,2666.6,2666.5,0.37492]
[1727514115365,4.18573105,2666.6,2666.4,0.37493]
[1727514115568,4.18573105,2666.6,2666.5,0.37492]
[1727514115963,0.97793105,2666.6,2666.5,0.37492]
[1727514116458,1.35493105,2666.6,2666.5,0.37492]
[1727514116857,1.35493105,2666.6,2666.4,0.37493]
[1727514116858,1.73803105,2666.6,2666.4,0.37493]
[1727514117061,5.32074105,2666.6,2666.4,0.37493]
[1727514117261,4.94583105,2666.6,2666.4,0.37493]
[1727514117557,5.32074105,2666.6,2666.4,0.37493]
[1727514117967,4.94583105,2666.6,2666.4,0.37493]
[1727514118773,4.94583105,2666.6,2666.5,0.37492]
[1727514119264,8.09322,2666.6,2666.4,0.37493]
[1727514119466,1.35162236,2666.5,2665.9,6.1378]
[1727514119663,1.35163236,2666.4,2666.2,0.37496]
[1727514119975,0.3972,2666.3,2666.2,0.37496]
[1727514122269,0.3972,2666.3,2666.0,0.37499]
[1727514122270,0.37497,2666.2,2666.0,0.37499]
[1727514122469,0.37499,2666.1,2665.9,0.375]
[1727514122671,0.76559,2666.1,2665.9,0.375]
[1727514123069,0.3906,2666.1,2666.0,0.37499]
[1727514123289,1.74228236,2666.1,2665.9,0.375]
[1727514124074,1.35168236,2666.0,2665.8,0.37501]
[1727514124275,1.35168236,2666.0,2665.8,0.37502]
[1727514124276,4.18449236,2665.9,2665.8,0.37502]
[1727514124683,4.18449236,2665.9,2665.8,3.30502]
[1727514124882,0.97669236,2665.9,2665.8,3.30502]
[1727514125378,0.97669236,2666.0,2665.9,0.37501]
[1727514125579,0.97669236,2666.1,2666.0,0.37499]
[1727514125781,5.10469236,2666.6,2666.2,0.93742]
[1727514125999,0.97669236,2666.7,2666.6,0.37491]
[1727514126186,2.18589236,2666.8,2666.5,2.93]
[1727514126381,0.97669236,2666.7,2666.6,0.37491]
[1727514126878,0.97828961,2666.7,2666.6,0.37491]
[1727514127278,0.97828961,2666.8,2666.7,0.3749]
[1727514127476,1.38178961,2667.2,2666.8,0.93721]
[1727514127682,1.38178961,2667.2,2667.1,3.30484]
[1727514127683,0.4035,2667.2,2667.1,3.30484]
[1727514127888,1.38178961,2667.2,2667.1,3.30484]
[1727514128091,1.86974474,2667.2,2667.1,0.37484]
[1727514128283,1.86974474,2667.2,2666.7,0.98201225]
[1727514128486,1.46780011,2667.0,2666.9,0.37487]
[1727514128687,1.46780011,2667.0,2666.8,0.938]
[1727514128884,0.7802,2666.9,2666.8,0.938]
[1727514129188,1.15507,2666.9,2666.8,0.938]
[1727514129388,3.11435397,2666.9,2666.8,0.938]
[1727514129588,3.11435397,2666.9,2666.6,3.3049]
[1727514129891,0.97857532,2666.7,2666.6,3.3049]
[1727514130086,1.46786299,2666.7,2666.6,3.3049]
[1727514130286,0.4052,2666.7,2666.6,3.3049]
[1727514130481,0.4052,2666.7,2666.5,0.37492]
[1727514130683,0.4052,2666.7,2666.6,0.37491]
[1727514131091,2.36448397,2666.7,2666.6,0.37491]
[1727514131394,2.73938397,2666.7,2666.4,0.37493]
[1727514131687,2.73938397,2666.7,2666.3,3.868]
[1727514131688,1.46826287,2666.5,2666.1,2.93]
[1727514131884,0.97881758,2666.4,2666.1,3.91201225]
[1727514132090,0.97881758,2666.4,2666.3,0.37495]
[1727514132287,0.97881758,2666.5,2666.4,0.37494]
[1727514132488,1.87346287,2666.7,2666.5,0.37492]
[1727514132489,0.97881758,2666.6,2666.5,0.37492]
[1727514132693,0.97891975,2666.6,2666.5,0.37492]
[1727514133283,1.87346287,2666.7,2666.6,0.37491]
[1727514133486,0.4052,2666.7,2666.6,0.37491]
[1727514133686,1.87351118,2666.7,2666.6,0.37491]
[1727514133884,2.24841118,2666.7,2666.3,2.93]
[1727514134090,2.24841118,2666.7,2666.2,0.98201225]
[1727514134091,0.97884604,2666.4,2666.2,3.868]
[1727514134297,1.37754604,2666.3,2666.2,4.24297]
[1727514134488,1.37754604,2666.3,2666.2,3.30497]
[1727514134886,0.3987,2666.3,2666.2,3.30497]
[1727514137698,0.97884604,2666.5,2666.2,6.6804]
[1727514137899,0.97884604,2666.5,2666.4,3.30494]
[1727514138099,0.3924,2666.7,2666.4,5.06810408]
[1727514138397,0.3924,2666.7,2666.6,0.37491]
[1727514140392,1.37124604,2666.7,2666.6,0.37491]
[1727514142594,0.3924,2666.7,2666.2,1.92001225]
[1727514142801,0.97874591,2666.6,2666.5,0.37492]
[1727514142990,1.46812843,2666.6,2666.5,0.37492]
[1727514143391,0.97872665,2666.6,2666.5,0.37492]
[1727514143600,0.97872665,2666.6,2666.3,0.98201225]
[1727514143601,1.37112665,2666.7,2666.6,0.37491]
[1727514143795,0.3924,2666.7,2666.6,0.37491]
[1727514144298,1.37112665,2666.7,2666.6,0.37491]
[1727514144488,0.3924,2666.7,2666.6,0.37491]
[1727514144691,1.37112665,2666.7,2666.6,0.37491]
[1727514144891,0.3924,2666.7,2666.6,0.37491]
[1727514145299,1.37112665,2666.7,2666.6,0.37491]
[1727514145497,0.3924,2666.7,2666.6,0.37491]